[Event "*** Titled Tuesday 3|2 Blitz"]
[Site "Chess.com"]
[Date "2017.05.02"]
[Round "8"]
[White "Rodalquilar"]
[Black "DrVitman"]
[Result "1-0"]
[WhiteElo "2544"]
[BlackElo "2592"]
[TimeControl "180+2"]
[EndTime "14:48:24 PDT"]
[Termination "Rodalquilar won on time"]

1. d4 {[%clk 0:03:02]} 1... d5 {[%clk 0:03:00.4]} 2. Bf4 {[%clk 0:03:03]} 2...
e6 {[%clk 0:03:00.1]} 3. e3 {[%clk 0:03:00.9]} 3... Bd6 {[%clk 0:02:59.4]} 4.
Bg3 {[%clk 0:03:00.5]} 4... c5 {[%clk 0:02:59.6]} 5. c3 {[%clk 0:03:01.2]} 5...
Nc6 {[%clk 0:03:00.7]} 6. Nf3 {[%clk 0:03:01.9]} 6... Nge7 {[%clk 0:03:00]} 7.
Bd3 {[%clk 0:03:02.3]} 7... b6 {[%clk 0:03:00.7]} 8. Nbd2 {[%clk 0:03:02.4]}
8... Bb7 {[%clk 0:03:01.2]} 9. O-O {[%clk 0:02:54.7]} 9... Bxg3 {[%clk
0:03:00.8]} 10. hxg3 {[%clk 0:02:55.5]} 10... O-O {[%clk 0:02:56.5]} 11. Qe2
{[%clk 0:02:50.1]} 11... g6 {[%clk 0:02:29.4]} 12. Rad1 {[%clk 0:02:29]} 12...
cxd4 {[%clk 0:02:28.3]} 13. exd4 {[%clk 0:02:29.8]} 13... Qc7 {[%clk 0:02:28.2]}
14. Qe3 {[%clk 0:02:29.7]} 14... Kg7 {[%clk 0:02:28.4]} 15. Rfe1 {[%clk
0:02:27.1]} 15... Ng8 {[%clk 0:02:28.2]} 16. Qg5 {[%clk 0:02:21]} 16... Qd8
{[%clk 0:02:24.1]} 17. Qf4 {[%clk 0:02:20.3]} 17... Qf6 {[%clk 0:02:22.4]} 18.
Qc7 {[%clk 0:02:18.9]} 18... Qe7 {[%clk 0:02:21.8]} 19. Qf4 {[%clk 0:02:19.7]}
19... Qf6 {[%clk 0:02:22.4]} 20. Qc7 {[%clk 0:02:20.7]} 20... Qe7 {[%clk
0:02:21.8]} 21. Qf4 {[%clk 0:02:21.6]} 21... Qf6 {[%clk 0:02:22.6]} 22. Qe3
{[%clk 0:02:23.2]} 22... a5 {[%clk 0:02:10.2]} 23. g4 {[%clk 0:02:23.7]} 23...
Ba6 {[%clk 0:02:09.2]} 24. g5 {[%clk 0:02:24.5]} 24... Qd8 {[%clk 0:02:00.8]}
25. Bb1 {[%clk 0:02:24.7]} 25... Nge7 {[%clk 0:01:59.7]} 26. Qf4 {[%clk
0:02:24.3]} 26... Rc8 {[%clk 0:01:30.9]} 27. Nh2 {[%clk 0:02:10.7]} 27... Nf5
{[%clk 0:01:29.8]} 28. Ng4 {[%clk 0:02:00.9]} 28... Qc7 {[%clk 0:01:14.6]} 29.
Qf3 {[%clk 0:01:52.1]} 29... Qd8 {[%clk 0:00:58.5]} 30. Nf6 {[%clk 0:01:32.8]}
30... h6 {[%clk 0:00:58.2]} 31. Bxf5 {[%clk 0:01:21.9]} 31... exf5 {[%clk
0:00:57.2]} 32. gxh6+ {[%clk 0:00:18.5]} 32... Kxf6 {[%clk 0:00:57.6]} 33. c4
{[%clk 0:00:20]} 33... Ne7 {[%clk 0:00:49.3]} 34. cxd5 {[%clk 0:00:18.7]} 34...
Qxd5 {[%clk 0:00:36.8]} 35. Ne4+ {[%clk 0:00:19.8]} 35... Qxe4 {[%clk
0:00:28.8]} 36. Rxe4 {[%clk 0:00:20.6]} 36... Bb7 {[%clk 0:00:22.7]} 37. Qg3
{[%clk 0:00:21.1]} 37... Bxe4 {[%clk 0:00:21.5]} 38. Qe5+ {[%clk 0:00:22.3]}
38... Kg5 {[%clk 0:00:22.6]} 39. Qxe7+ {[%clk 0:00:23.3]} 39... Kxh6 {[%clk
0:00:23.9]} 40. f3 {[%clk 0:00:22.1]} 40... Ba8 {[%clk 0:00:24.5]} 41. d5 {[%clk
0:00:19]} 41... Kg7 {[%clk 0:00:24.4]} 42. Qe5+ {[%clk 0:00:19.6]} 42... f6
{[%clk 0:00:23.6]} 43. Qd4 {[%clk 0:00:20.8]} 43... Rb8 {[%clk 0:00:17.4]} 44.
d6 {[%clk 0:00:21.5]} 44... Rf7 {[%clk 0:00:16.1]} 45. Rc1 {[%clk 0:00:21.4]}
45... Rd8 {[%clk 0:00:16.5]} 46. Qxb6 {[%clk 0:00:20]} 46... Rfd7 {[%clk
0:00:17.3]} 47. Rc7 {[%clk 0:00:21]} 47... Kf7 {[%clk 0:00:17.4]} 48. Qxa5
{[%clk 0:00:18.7]} 48... Bb7 {[%clk 0:00:16.8]} 49. Rxb7 {[%clk 0:00:18.1]} 1-0

[Event "*** Titled Tuesday 3|2 Blitz"]
[Site "Chess.com"]
[Date "2017.05.02"]
[Round "8"]
[White "Vamostodorecto"]
[Black "scrapnel"]
[Result "0-1"]
[WhiteElo "2329"]
[BlackElo "2475"]
[TimeControl "180+2"]
[EndTime "14:48:38 PDT"]
[Termination "scrapnel won by resignation"]

1. d4 {[%clk 0:03:02]} 1... Nf6 {[%clk 0:03:00.3]} 2. c4 {[%clk 0:03:02.6]} 2...
e6 {[%clk 0:03:01.6]} 3. Nc3 {[%clk 0:03:03.1]} 3... Bb4 {[%clk 0:03:02.3]} 4.
a3 {[%clk 0:03:02.8]} 4... Bxc3+ {[%clk 0:03:02.6]} 5. bxc3 {[%clk 0:03:04.7]}
5... c5 {[%clk 0:03:03.6]} 6. f3 {[%clk 0:03:05.7]} 6... O-O {[%clk 0:03:00.1]}
7. e4 {[%clk 0:03:05.3]} 7... Ne8 {[%clk 0:03:00.2]} 8. Bd3 {[%clk 0:03:05.2]}
8... Nc6 {[%clk 0:02:59.2]} 9. Ne2 {[%clk 0:03:05.9]} 9... b6 {[%clk 0:02:59.6]}
10. Ng3 {[%clk 0:02:59.5]} 10... cxd4 {[%clk 0:02:55.3]} 11. cxd4 {[%clk
0:02:56.9]} 11... Nxd4 {[%clk 0:02:56]} 12. Bb2 {[%clk 0:02:44.7]} 12... Nc6
{[%clk 0:02:54.1]} 13. O-O {[%clk 0:02:40.8]} 13... Ba6 {[%clk 0:02:53.2]} 14.
f4 {[%clk 0:02:37.4]} 14... f6 {[%clk 0:02:48.4]} 15. Qg4 {[%clk 0:02:22.5]}
15... Qe7 {[%clk 0:02:43.2]} 16. Kh1 {[%clk 0:02:07.2]} 16... Na5 {[%clk
0:02:37.4]} 17. Rac1 {[%clk 0:01:47.4]} 17... Rc8 {[%clk 0:02:37.3]} 18. Qe2
{[%clk 0:01:30]} 18... Nb3 {[%clk 0:02:17.8]} 19. Rcd1 {[%clk 0:01:27.3]} 19...
Nc5 {[%clk 0:02:16.1]} 20. Bb1 {[%clk 0:01:27.8]} 20... Na4 {[%clk 0:02:12.9]}
21. Bd3 {[%clk 0:01:23.3]} 21... Nxb2 {[%clk 0:02:12.4]} 22. Qxb2 {[%clk
0:01:25.2]} 22... Bxc4 {[%clk 0:02:10.7]} 23. Bxc4 {[%clk 0:01:27.1]} 23... Rxc4
{[%clk 0:02:11.7]} 24. e5 {[%clk 0:01:25.7]} 24... f5 {[%clk 0:01:50.1]} 25. Qb5
{[%clk 0:01:21.5]} 25... Rc6 {[%clk 0:01:46.6]} 26. Qa6 {[%clk 0:01:13.6]} 26...
d5 {[%clk 0:01:40.7]} 27. Ne2 {[%clk 0:00:59.1]} 27... Rc4 {[%clk 0:01:36]} 28.
Nd4 {[%clk 0:00:56.6]} 28... g6 {[%clk 0:01:28.4]} 29. Nb5 {[%clk 0:00:48]}
29... Ng7 {[%clk 0:01:15.4]} 30. Rc1 {[%clk 0:00:29.3]} 30... Rc5 {[%clk
0:01:07.9]} 31. Qxa7 {[%clk 0:00:18]} 31... Qxa7 {[%clk 0:01:05.4]} 32. Nxa7
{[%clk 0:00:19.9]} 32... h6 {[%clk 0:00:51.9]} 33. Nc6 {[%clk 0:00:19.7]} 33...
g5 {[%clk 0:00:43.1]} 34. fxg5 {[%clk 0:00:17.6]} 34... hxg5 {[%clk 0:00:43.6]}
35. Nd4 {[%clk 0:00:19.3]} 35... Ra8 {[%clk 0:00:41.3]} 36. Rb1 {[%clk
0:00:19.8]} 36... Ra6 {[%clk 0:00:36.7]} 37. h3 {[%clk 0:00:19]} 37... Kf7
{[%clk 0:00:35.4]} 38. Nf3 {[%clk 0:00:17.4]} 38... Kg6 {[%clk 0:00:34.8]} 39.
Rfe1 {[%clk 0:00:16.2]} 39... f4 {[%clk 0:00:34.1]} 40. Nd4 {[%clk 0:00:16.5]}
40... Rc4 {[%clk 0:00:31.7]} 41. Nb5 {[%clk 0:00:16.1]} 41... Nf5 {[%clk
0:00:29.5]} 42. Nd6 {[%clk 0:00:16.9]} 42... Rc2 {[%clk 0:00:27.3]} 43. Rb3
{[%clk 0:00:12.8]} 43... Ne3 {[%clk 0:00:24]} 44. Rg1 {[%clk 0:00:09.1]} 44...
Ra2 {[%clk 0:00:22.2]} 45. Nb5 {[%clk 0:00:09.4]} 45... Nc4 {[%clk 0:00:21.2]}
46. Nd4 {[%clk 0:00:08.9]} 46... Kf7 {[%clk 0:00:19.2]} 47. Re1 {[%clk
0:00:06.9]} 47... R6xa3 {[%clk 0:00:18.5]} 48. Rxa3 {[%clk 0:00:07.7]} 48...
Rxa3 {[%clk 0:00:19.2]} 49. Nf3 {[%clk 0:00:09.4]} 49... Kg6 {[%clk 0:00:18.2]}
50. Nd4 {[%clk 0:00:10.6]} 50... Re3 {[%clk 0:00:11.8]} 51. Rd1 {[%clk
0:00:08.7]} 51... Rxe5 {[%clk 0:00:12.2]} 52. Nc6 {[%clk 0:00:09.8]} 52... Re2
{[%clk 0:00:12.2]} 53. Kg1 {[%clk 0:00:08.5]} 53... Rxg2+ {[%clk 0:00:12]} 54.
Kf1 {[%clk 0:00:06.5]} 54... Ne3+ {[%clk 0:00:12.7]} 55. Ke1 {[%clk 0:00:06.7]}
55... Rg1+ {[%clk 0:00:13.9]} 0-1

[Event "*** Titled Tuesday 3|2 Blitz"]
[Site "Chess.com"]
[Date "2017.05.02"]
[Round "8"]
[White "PowerThinking2650"]
[Black "Olkaa"]
[Result "0-1"]
[WhiteElo "2178"]
[BlackElo "2457"]
[TimeControl "180+2"]
[EndTime "14:48:43 PDT"]
[Termination "Olkaa won by checkmate"]

1. e4 {[%clk 0:03:02]} 1... g6 {[%clk 0:03:00.8]} 2. d4 {[%clk 0:03:01.4]} 2...
Bg7 {[%clk 0:03:02.1]} 3. Nc3 {[%clk 0:03:01.6]} 3... d6 {[%clk 0:03:01.1]} 4.
f4 {[%clk 0:03:02]} 4... a6 {[%clk 0:03:00.6]} 5. Nf3 {[%clk 0:02:58.6]} 5... b5
{[%clk 0:03:01.5]} 6. Bd3 {[%clk 0:02:56.8]} 6... Nd7 {[%clk 0:02:58.5]} 7. e5
{[%clk 0:02:42.5]} 7... c5 {[%clk 0:02:49.4]} 8. e6 {[%clk 0:02:16.8]} 8... fxe6
{[%clk 0:02:47.7]} 9. Ng5 {[%clk 0:02:17.7]} 9... Nf8 {[%clk 0:01:59.2]} 10.
dxc5 {[%clk 0:02:15]} 10... dxc5 {[%clk 0:01:59.8]} 11. Be3 {[%clk 0:02:12.3]}
11... Qc7 {[%clk 0:01:49.8]} 12. O-O {[%clk 0:01:40.4]} 12... Bb7 {[%clk
0:01:47.8]} 13. Qg4 {[%clk 0:01:33.9]} 13... c4 {[%clk 0:01:07.4]} 14. Be4
{[%clk 0:01:31.2]} 14... Nf6 {[%clk 0:00:53.6]} 15. Nxe6 {[%clk 0:01:10.1]}
15... Nxe6 {[%clk 0:00:49.1]} 16. Qxe6 {[%clk 0:01:07.3]} 16... Nxe4 {[%clk
0:00:42.2]} 17. Nxe4 {[%clk 0:01:06.3]} 17... Bxe4 {[%clk 0:00:40]} 18. Qxe4
{[%clk 0:01:06.6]} 18... O-O {[%clk 0:00:41]} 19. Bd4 {[%clk 0:00:58.4]} 19...
Bxd4+ {[%clk 0:00:40.9]} 20. Qxd4 {[%clk 0:00:59.3]} 20... Rad8 {[%clk
0:00:42.6]} 21. Qe3 {[%clk 0:00:53.7]} 21... Rd6 {[%clk 0:00:38.7]} 22. Rae1
{[%clk 0:00:52.1]} 22... Rf7 {[%clk 0:00:39.6]} 23. c3 {[%clk 0:00:48.3]} 23...
Qd7 {[%clk 0:00:40.3]} 24. Re2 {[%clk 0:00:45.2]} 24... Rd3 {[%clk 0:00:39.7]}
25. Qe5 {[%clk 0:00:39.4]} 25... Qd6 {[%clk 0:00:40.3]} 26. g3 {[%clk
0:00:33.4]} 26... Rd5 {[%clk 0:00:32.5]} 27. Qxd6 {[%clk 0:00:29.5]} 27... exd6
{[%clk 0:00:33.3]} 28. Re8+ {[%clk 0:00:24.6]} 28... Rf8 {[%clk 0:00:30.8]} 29.
Rxf8+ {[%clk 0:00:18.1]} 29... Kxf8 {[%clk 0:00:31.7]} 30. Rf2 {[%clk
0:00:19.2]} 30... Rd1+ {[%clk 0:00:30.1]} 31. Kg2 {[%clk 0:00:19.6]} 31... d5
{[%clk 0:00:27.3]} 32. Kf3 {[%clk 0:00:19.9]} 32... Ke7 {[%clk 0:00:26.1]} 33.
Kg4 {[%clk 0:00:17.6]} 33... Kf6 {[%clk 0:00:25.4]} 34. Re2 {[%clk 0:00:18.4]}
34... d4 {[%clk 0:00:22.3]} 35. cxd4 {[%clk 0:00:19.1]} 35... Rxd4 {[%clk
0:00:23.5]} 36. Kf3 {[%clk 0:00:20.8]} 36... Rd1 {[%clk 0:00:22]} 37. h3 {[%clk
0:00:20.8]} 37... b4 {[%clk 0:00:19.9]} 38. g4 {[%clk 0:00:21.5]} 38... Ra1
{[%clk 0:00:20.8]} 39. g5+ {[%clk 0:00:20]} 39... Kf7 {[%clk 0:00:21]} 40. Rc2
{[%clk 0:00:19.5]} 40... Rxa2 {[%clk 0:00:20]} 41. Rxc4 {[%clk 0:00:20.5]} 41...
Rxb2 {[%clk 0:00:21.2]} 42. Rc7+ {[%clk 0:00:21.2]} 42... Ke6 {[%clk 0:00:17.8]}
43. Rxh7 {[%clk 0:00:20.6]} 43... a5 {[%clk 0:00:18.1]} 44. Rg7 {[%clk
0:00:21.7]} 44... a4 {[%clk 0:00:16.6]} 45. Rxg6+ {[%clk 0:00:22.2]} 45... Kf7
{[%clk 0:00:17.6]} 46. Rf6+ {[%clk 0:00:22.9]} 46... Kg7 {[%clk 0:00:18.4]} 47.
Ra6 {[%clk 0:00:23.4]} 47... a3 {[%clk 0:00:19.5]} 48. f5 {[%clk 0:00:24.6]}
48... a2 {[%clk 0:00:19.8]} 49. Ra7+ {[%clk 0:00:25.8]} 49... Kf8 {[%clk
0:00:19.6]} 50. f6 {[%clk 0:00:27]} 50... Rb3+ {[%clk 0:00:20.9]} 51. Kf4 {[%clk
0:00:26.8]} 51... Ra3 {[%clk 0:00:22.8]} 52. Re7 {[%clk 0:00:12.7]} 52... a1=Q
{[%clk 0:00:23.3]} 53. Kf5 {[%clk 0:00:12.3]} 53... Qb1+ {[%clk 0:00:23.5]} 54.
Kg4 {[%clk 0:00:12.6]} 54... Qd1+ {[%clk 0:00:20.2]} 55. Kf5 {[%clk 0:00:13.3]}
55... Rxh3 {[%clk 0:00:20.1]} 56. g6 {[%clk 0:00:13.7]} 56... Qd3+ {[%clk
0:00:19.9]} 57. Ke6 {[%clk 0:00:14.2]} 57... Re3# {[%clk 0:00:19.3]} 0-1

[Event "*** Titled Tuesday 3|2 Blitz"]
[Site "Chess.com"]
[Date "2017.05.02"]
[Round "8"]
[White "GMBenjaminBok"]
[Black "Hikaru"]
[Result "1/2-1/2"]
[WhiteElo "2681"]
[BlackElo "2863"]
[TimeControl "180+2"]
[EndTime "14:48:48 PDT"]
[Termination "Game drawn by repetition"]

1. Nf3 {[%clk 0:03:02]} 1... d5 {[%clk 0:02:56]} 2. g3 {[%clk 0:03:03]} 2... g6
{[%clk 0:02:57.3]} 3. Bg2 {[%clk 0:03:03.3]} 3... Bg7 {[%clk 0:02:58.9]} 4. d4
{[%clk 0:03:04]} 4... Nd7 {[%clk 0:02:59.6]} 5. O-O {[%clk 0:03:04.6]} 5... Ngf6
{[%clk 0:02:59.5]} 6. b3 {[%clk 0:03:01.9]} 6... c5 {[%clk 0:02:59.7]} 7. Bb2
{[%clk 0:03:02.4]} 7... O-O {[%clk 0:03:00.3]} 8. Nbd2 {[%clk 0:03:00.2]} 8...
b6 {[%clk 0:03:00.9]} 9. c4 {[%clk 0:02:56.6]} 9... Bb7 {[%clk 0:03:02]} 10. Rc1
{[%clk 0:02:54.1]} 10... Rc8 {[%clk 0:03:00.3]} 11. e3 {[%clk 0:02:48.1]} 11...
e6 {[%clk 0:03:01.3]} 12. Qe2 {[%clk 0:02:46.1]} 12... Qe7 {[%clk 0:03:02.2]}
13. Rfd1 {[%clk 0:02:47]} 13... Ba6 {[%clk 0:03:01.6]} 14. Ba3 {[%clk
0:02:43.7]} 14... Rfd8 {[%clk 0:03:02.1]} 15. e4 {[%clk 0:02:28.7]} 15... Nxe4
{[%clk 0:02:51.2]} 16. Nxe4 {[%clk 0:02:28.8]} 16... dxe4 {[%clk 0:02:53.1]} 17.
Qxe4 {[%clk 0:02:30.1]} 17... Qe8 {[%clk 0:02:46.7]} 18. Qe3 {[%clk 0:02:12.4]}
18... Bb7 {[%clk 0:02:43.8]} 19. dxc5 {[%clk 0:02:03.9]} 19... Nxc5 {[%clk
0:02:43.2]} 20. Nd4 {[%clk 0:01:58]} 20... Bxg2 {[%clk 0:02:36]} 21. Kxg2 {[%clk
0:01:59.9]} 21... a6 {[%clk 0:02:36.8]} 22. Ne2 {[%clk 0:01:45.6]} 22... Qc6+
{[%clk 0:02:36.3]} 23. Qf3 {[%clk 0:01:35.2]} 23... Qxf3+ {[%clk 0:02:34.9]} 24.
Kxf3 {[%clk 0:01:37.1]} 24... Nd3 {[%clk 0:02:36.3]} 25. Rb1 {[%clk 0:01:34.9]}
25... b5 {[%clk 0:02:37.5]} 26. cxb5 {[%clk 0:01:29.9]} 26... axb5 {[%clk
0:02:39.4]} 27. Nf4 {[%clk 0:01:25.1]} 27... Nxf4 {[%clk 0:02:24.5]} 28. Kxf4
{[%clk 0:01:18.8]} 28... h5 {[%clk 0:02:06.6]} 29. Ke3 {[%clk 0:00:55]} 29...
Rc3+ {[%clk 0:02:01.3]} 30. Ke2 {[%clk 0:00:31.6]} 30... Rc2+ {[%clk 0:01:56.7]}
31. Kf1 {[%clk 0:00:29.6]} 31... Ra8 {[%clk 0:01:57.4]} 32. Bc1 {[%clk
0:00:25.7]} 32... Rcxa2 {[%clk 0:01:47.5]} 33. Be3 {[%clk 0:00:26]} 33... Bc3
{[%clk 0:01:48.6]} 34. Rd7 {[%clk 0:00:23.5]} 34... b4 {[%clk 0:01:40.2]} 35.
Kg2 {[%clk 0:00:22.6]} 35... Ra1 {[%clk 0:01:39.3]} 36. Rxa1 {[%clk 0:00:23]}
36... Rxa1 {[%clk 0:01:41.2]} 37. Rd8+ {[%clk 0:00:23.7]} 37... Kg7 {[%clk
0:01:40.2]} 38. Bd4+ {[%clk 0:00:24.1]} 38... e5 {[%clk 0:01:39.6]} 39. Bxc3
{[%clk 0:00:24.9]} 39... bxc3 {[%clk 0:01:41.5]} 40. Rc8 {[%clk 0:00:26.2]}
40... Rc1 {[%clk 0:01:42.4]} 41. b4 {[%clk 0:00:23.5]} 41... e4 {[%clk
0:01:40.6]} 42. b5 {[%clk 0:00:23.1]} 42... Rc2 {[%clk 0:01:33]} 43. Kg1 {[%clk
0:00:22.4]} 43... h4 {[%clk 0:01:29.3]} 44. gxh4 {[%clk 0:00:21.4]} 44... f5
{[%clk 0:01:30.4]} 45. b6 {[%clk 0:00:21.1]} 45... Rb2 {[%clk 0:01:26.7]} 46.
Rxc3 {[%clk 0:00:21.5]} 46... Rxb6 {[%clk 0:01:27.9]} 47. Kg2 {[%clk 0:00:22]}
47... Rd6 {[%clk 0:01:28.8]} 48. Rc8 {[%clk 0:00:20.9]} 48... Rd2 {[%clk
0:01:27.5]} 49. Kg3 {[%clk 0:00:17.9]} 49... Kf6 {[%clk 0:01:24.6]} 50. Rc6+
{[%clk 0:00:17.8]} 50... Ke5 {[%clk 0:01:26]} 51. Rc5+ {[%clk 0:00:15]} 51...
Kf6 {[%clk 0:01:27]} 52. Rc6+ {[%clk 0:00:13.5]} 52... Kg7 {[%clk 0:01:28.4]}
53. Rc7+ {[%clk 0:00:12]} 53... Kh6 {[%clk 0:01:29.3]} 54. Rc8 {[%clk
0:00:12.8]} 54... Rd3+ {[%clk 0:01:30.8]} 55. Kg2 {[%clk 0:00:11.7]} 55... Rd2
{[%clk 0:01:28.9]} 56. Kg3 {[%clk 0:00:11.9]} 56... Rd3+ {[%clk 0:01:30.4]} 57.
Kg2 {[%clk 0:00:13.1]} 57... Kh5 {[%clk 0:01:31.4]} 58. Rh8+ {[%clk 0:00:13.3]}
58... Kg4 {[%clk 0:01:32.3]} 59. Rh6 {[%clk 0:00:14.3]} 59... f4 {[%clk
0:01:33.6]} 60. Rxg6+ {[%clk 0:00:14.9]} 60... Kxh4 {[%clk 0:01:34.7]} 61. Rh6+
{[%clk 0:00:14.5]} 61... Kg5 {[%clk 0:01:34.4]} 62. Rh8 {[%clk 0:00:15]} 62...
Rd2 {[%clk 0:01:35.9]} 63. Rg8+ {[%clk 0:00:14.6]} 63... Kh5 {[%clk 0:01:36]}
64. Rh8+ {[%clk 0:00:15.6]} 64... Kg4 {[%clk 0:01:36.9]} 65. Rg8+ {[%clk
0:00:16.5]} 65... Kf5 {[%clk 0:01:38.1]} 66. Rf8+ {[%clk 0:00:17.5]} 66... Kg5
{[%clk 0:01:39.6]} 67. Rg8+ {[%clk 0:00:18.4]} 67... Kf6 {[%clk 0:01:41.2]} 68.
Rf8+ {[%clk 0:00:19.3]} 68... Ke5 {[%clk 0:01:42.7]} 69. Re8+ {[%clk 0:00:20.2]}
69... Kd4 {[%clk 0:01:44]} 70. Rf8 {[%clk 0:00:17.2]} 70... f3+ {[%clk
0:01:45.2]} 71. Kg3 {[%clk 0:00:18]} 71... Ra2 {[%clk 0:01:44.3]} 72. Rd8+
{[%clk 0:00:18.1]} 72... Ke5 {[%clk 0:01:44.7]} 73. Re8+ {[%clk 0:00:19.2]}
73... Kf5 {[%clk 0:01:46.3]} 74. Rf8+ {[%clk 0:00:20.1]} 74... Kg5 {[%clk
0:01:47.9]} 75. h4+ {[%clk 0:00:20.6]} 75... Kg6 {[%clk 0:01:48.5]} 76. Re8
{[%clk 0:00:20.7]} 76... Re2 {[%clk 0:01:50]} 77. Re5 {[%clk 0:00:20.8]} 77...
Kf6 {[%clk 0:01:50.2]} 78. Re8 {[%clk 0:00:21.4]} 78... Re1 {[%clk 0:01:50.6]}
79. Kf4 {[%clk 0:00:22]} 79... Re2 {[%clk 0:01:51]} 80. Rxe4 {[%clk 0:00:22.4]}
80... Rxf2 {[%clk 0:01:52.3]} 81. Kg3 {[%clk 0:00:23.3]} 81... Ra2 {[%clk
0:01:52.8]} 82. Kxf3 {[%clk 0:00:23.2]} 82... Kg6 {[%clk 0:01:54.4]} 83. Re5
{[%clk 0:00:23.3]} 83... Kh6 {[%clk 0:01:55.6]} 84. Kg4 {[%clk 0:00:24]} 84...
Ra6 {[%clk 0:01:56.9]} 85. Rh5+ {[%clk 0:00:24]} 85... Kg7 {[%clk 0:01:58.5]}
86. Rg5+ {[%clk 0:00:25.5]} 86... Kh6 {[%clk 0:02:00.2]} 87. Rh5+ {[%clk
0:00:26.8]} 87... Kg7 {[%clk 0:02:01.9]} 88. Rg5+ {[%clk 0:00:28.1]} 88... Kh6
{[%clk 0:02:03.6]} 89. Rh5+ {[%clk 0:00:29.3]} 89... Kg7 {[%clk 0:02:05.2]} 90.
Rg5+ {[%clk 0:00:30.6]} 90... Kh6 {[%clk 0:02:06.9]} 91. Rh5+ {[%clk 0:00:31.8]}
91... Kg7 {[%clk 0:02:08.6]} 92. Rg5+ {[%clk 0:00:33.1]} 92... Kh6 {[%clk
0:02:10.3]} 93. Rh5+ {[%clk 0:00:34.4]} 1/2-1/2

[Event "*** Titled Tuesday 3|2 Blitz"]
[Site "Chess.com"]
[Date "2017.05.02"]
[Round "8"]
[White "Vegan4future"]
[Black "Schemato"]
[Result "0-1"]
[WhiteElo "2282"]
[BlackElo "2304"]
[TimeControl "180+2"]
[EndTime "14:49:02 PDT"]
[Termination "Schemato won by resignation"]

1. e4 {[%clk 0:02:30.9]} 1... e6 {[%clk 0:02:59.5]} 2. Nf3 {[%clk 0:02:20.5]}
2... d5 {[%clk 0:03:00]} 3. Nc3 {[%clk 0:02:21.5]} 3... Nf6 {[%clk 0:02:59.9]}
4. e5 {[%clk 0:02:22.3]} 4... Nfd7 {[%clk 0:03:00.6]} 5. d4 {[%clk 0:02:23.9]}
5... c5 {[%clk 0:03:01.1]} 6. dxc5 {[%clk 0:02:25.8]} 6... Nc6 {[%clk
0:03:02.2]} 7. Bf4 {[%clk 0:02:27.3]} 7... Bxc5 {[%clk 0:02:54.4]} 8. Bd3 {[%clk
0:02:28.2]} 8... f6 {[%clk 0:02:53.6]} 9. exf6 {[%clk 0:02:28.6]} 9... Qxf6
{[%clk 0:02:54.6]} 10. Bg3 {[%clk 0:02:30.1]} 10... h6 {[%clk 0:02:49.6]} 11.
O-O {[%clk 0:02:30.2]} 11... O-O {[%clk 0:02:47]} 12. Qe2 {[%clk 0:02:27.5]}
12... a6 {[%clk 0:02:44.2]} 13. Rae1 {[%clk 0:02:21.5]} 13... Nb6 {[%clk
0:02:26]} 14. Ne5 {[%clk 0:02:17.5]} 14... Nxe5 {[%clk 0:02:24]} 15. Bxe5 {[%clk
0:02:19.4]} 15... Qf7 {[%clk 0:02:23.8]} 16. Qg4 {[%clk 0:02:13.3]} 16... Nd7
{[%clk 0:02:14.4]} 17. Bg6 {[%clk 0:02:07.5]} 17... Qe7 {[%clk 0:01:47.9]} 18.
a3 {[%clk 0:01:43.2]} 18... Nxe5 {[%clk 0:01:43.2]} 19. Rxe5 {[%clk 0:01:45.1]}
19... Qf6 {[%clk 0:01:44.2]} 20. Qg3 {[%clk 0:01:40.7]} 20... Bd6 {[%clk
0:01:34.3]} 21. Rfe1 {[%clk 0:01:38.7]} 21... Bxe5 {[%clk 0:01:30.8]} 22. Rxe5
{[%clk 0:01:40.6]} 22... Bd7 {[%clk 0:01:30.8]} 23. Ne2 {[%clk 0:01:40.8]} 23...
Rac8 {[%clk 0:01:26.2]} 24. c3 {[%clk 0:01:41.6]} 24... Rc4 {[%clk 0:01:14.2]}
25. Nd4 {[%clk 0:01:31.2]} 25... Rfc8 {[%clk 0:00:56.9]} 26. h4 {[%clk
0:01:26.9]} 26... b5 {[%clk 0:00:47.2]} 27. h5 {[%clk 0:01:27.6]} 27... a5
{[%clk 0:00:47.5]} 28. Re3 {[%clk 0:01:14.4]} 28... Rxd4 {[%clk 0:00:32]} 29.
cxd4 {[%clk 0:01:14.1]} 29... Qxd4 {[%clk 0:00:32.9]} 30. Qd6 {[%clk 0:00:59]}
30... Qa7 {[%clk 0:00:11.2]} 31. g3 {[%clk 0:00:46.8]} 31... Qc7 {[%clk
0:00:11.9]} 32. Qe7 {[%clk 0:00:46.7]} 32... Kh8 {[%clk 0:00:08.3]} 33. Rf3
{[%clk 0:00:45.7]} 33... Qd8 {[%clk 0:00:04.4]} 34. Qf7 {[%clk 0:00:38]} 34...
e5 {[%clk 0:00:04.4]} 35. Qxd5 {[%clk 0:00:34.2]} 35... Bc6 {[%clk 0:00:05.3]}
36. Qxd8+ {[%clk 0:00:32.3]} 36... Rxd8 {[%clk 0:00:07.2]} 37. Rd3 {[%clk
0:00:30.4]} 37... Rxd3 {[%clk 0:00:06.7]} 38. Bxd3 {[%clk 0:00:32.3]} 38... Kg8
{[%clk 0:00:06.2]} 39. Kh2 {[%clk 0:00:29.3]} 39... b4 {[%clk 0:00:06.6]} 40.
Kh3 {[%clk 0:00:30]} 40... Kf7 {[%clk 0:00:07.7]} 41. Kh4 {[%clk 0:00:31.1]}
41... Bd7 {[%clk 0:00:06.7]} 42. g4 {[%clk 0:00:31.1]} 42... Kf6 {[%clk
0:00:07.7]} 43. Kg3 {[%clk 0:00:32.4]} 43... Kg5 {[%clk 0:00:07.4]} 44. f3
{[%clk 0:00:33.5]} 44... Bc6 {[%clk 0:00:07.3]} 45. axb4 {[%clk 0:00:34.5]}
45... axb4 {[%clk 0:00:08]} 46. Bf5 {[%clk 0:00:35.9]} 46... Bd5 {[%clk
0:00:07.7]} 47. Kf2 {[%clk 0:00:36.6]} 47... Kf4 {[%clk 0:00:08.1]} 48. Bd7
{[%clk 0:00:33.1]} 48... Bxf3 {[%clk 0:00:08.1]} 49. Be6 {[%clk 0:00:32]} 49...
Bxg4 {[%clk 0:00:08.3]} 50. Bf7 {[%clk 0:00:33.6]} 50... e4 {[%clk 0:00:08.8]}
51. Bg6 {[%clk 0:00:32.8]} 51... e3+ {[%clk 0:00:10.1]} 52. Ke1 {[%clk
0:00:34.2]} 52... Kg5 {[%clk 0:00:10.4]} 53. Be4 {[%clk 0:00:34.2]} 53... Bxh5
{[%clk 0:00:10.9]} 54. Bg2 {[%clk 0:00:36.1]} 54... Kf4 {[%clk 0:00:11.9]} 55.
Bd5 {[%clk 0:00:37]} 55... g5 {[%clk 0:00:12.7]} 56. Bg2 {[%clk 0:00:37.9]}
56... Bf3 {[%clk 0:00:11.8]} 57. Bf1 {[%clk 0:00:38.8]} 57... g4 {[%clk
0:00:12.5]} 58. Bc4 {[%clk 0:00:40.3]} 58... h5 {[%clk 0:00:13]} 59. Kf1 {[%clk
0:00:42.2]} 59... h4 {[%clk 0:00:13.9]} 60. Kg1 {[%clk 0:00:44.1]} 60... h3
{[%clk 0:00:15.1]} 61. Kh2 {[%clk 0:00:43.6]} 61... e2 {[%clk 0:00:15.3]} 62.
Bxe2 {[%clk 0:00:37.3]} 62... Bxe2 {[%clk 0:00:16.1]} 63. b3 {[%clk 0:00:39.2]}
63... Bd1 {[%clk 0:00:14.6]} 64. Kg1 {[%clk 0:00:40.1]} 64... Bxb3 {[%clk
0:00:15.4]} 65. Kh2 {[%clk 0:00:41.1]} 65... Bd5 {[%clk 0:00:15.3]} 66. Kg1
{[%clk 0:00:41.3]} 66... g3 {[%clk 0:00:14.6]} 67. Kf1 {[%clk 0:00:42.1]} 67...
Ke3 {[%clk 0:00:15.7]} 0-1